bitfinex-derivatives/quotes_SOLF0:USTF0_20250514
["timestamp","ask_amount","ask_price","bid_price","bid_amount"]
[1747229083017,60.14,179.69,179.59,60.14]
[1747229083412,5.5651,179.67,179.63,5.5658]
[1747229083614,60.14,179.69,179.63,5.5658]
[1747229083814,5.5659,179.64,179.61,5.5667]
[1747229084015,60.14,179.66,179.59,60.14]
[1747229084311,60.14,179.66,179.58,60.14]
[1747229084513,5.566,179.64,179.58,60.14]
[1747229085015,60.14,179.66,179.58,60.14]
[1747229085421,120.28,179.69,179.58,60.14]
[1747229085621,125.8443,179.69,179.66,5.565]
[1747229085823,60.14,179.69,179.58,60.14]
[1747229086722,5.5652,179.66,179.58,60.14]
[1747229086917,5.5652,179.66,179.59,60.16]
[1747229087117,60.14,179.69,179.59,60.16]
[1747229087824,5.5654,179.66,179.63,5.5661]
[1747229088122,60.14,179.69,179.59,60.16]
[1747229088622,5.5651,179.67,179.59,60.16]
[1747229088828,60.14,179.69,179.59,60.16]
[1747229089523,5.5647,179.68,179.59,60.16]
[1747229089719,60.14,179.69,179.59,60.16]
[1747229090124,60.14,179.69,179.56,1.8062]
[1747229090423,60.14,179.69,179.57,120.3]
[1747229090823,5.5651,179.67,179.64,5.5658]
[1747229091423,60.14,179.69,179.57,120.3]
[1747229091724,424.12,179.72,179.57,120.3]
[1747229092025,424.12,179.72,179.67,5.5646]
[1747229093520,424.12,179.72,179.68,5.5645]
[1747229093721,5.5639,179.71,179.68,5.5645]
[1747229094122,424.12,179.72,179.67,5.5648]
[1747229094622,5.564,179.7,179.67,5.5648]
[1747229094822,424.12,179.72,179.68,5.5644]
[1747229095027,424.12,179.72,179.64,60.16]
[1747229095324,369.5634,179.72,179.64,63.7979]
[1747229095827,364.0,179.72,179.64,63.7979]
[1747229096430,364.0,179.72,179.69,5.5642]
[1747229097231,364.0,179.72,179.68,5.5645]
[1747229097429,364.0,179.72,179.64,63.7979]
[1747229097825,60.16,179.73,179.64,63.7979]
[1747229098033,69.84278134,179.75,179.64,63.7979]
[1747229098326,5.5629,179.74,179.64,63.7979]
[1747229098530,69.84278134,179.75,179.64,63.7979]
[1747229098732,69.82278134,179.75,179.64,63.7979]
[1747229098931,5.563,179.73,179.7,5.5638]
[1747229099233,69.82278134,179.75,179.64,63.7979]
[1747229099533,5.5632,179.73,179.64,63.7979]
[1747229099732,69.82278134,179.75,179.64,63.7979]
[1747229100134,5.5634,179.72,179.69,5.5641]
[1747229100331,60.1,179.74,179.64,63.7979]
[1747229100534,5.5635,179.72,179.64,63.7979]
[1747229100935,60.1,179.74,179.64,63.7979]
[1747229101233,5.5637,179.71,179.64,63.7979]
[1747229101730,60.1,179.74,179.64,3.6379]
[1747229101935,60.1,179.74,179.64,63.7979]
[1747229102133,5.5644,179.69,179.66,5.5652]
[1747229102333,60.1,179.74,179.66,5.5652]
[1747229102529,60.1,179.74,179.64,63.7979]
[1747229102730,5.564,179.7,179.67,5.5649]
[1747229103034,5.564,179.7,179.64,63.7979]
[1747229103234,60.1,179.74,179.64,63.7979]
[1747229103533,60.1,179.74,179.66,5.5651]
[1747229103739,9.72278134,179.72,179.64,60.16]
[1747229103929,69.80278134,179.72,179.64,60.16]
[1747229104835,60.1,179.74,179.64,60.16]
[1747229105036,65.6426,179.75,179.65,63.748]
[1747229105239,60.08,179.75,179.65,63.748]
[1747229105432,60.08,179.76,179.65,63.748]
[1747229105634,120.16,179.76,179.65,63.748]
[1747229105834,65.6423,179.76,179.73,5.5628]
[1747229106034,364.0,179.77,179.69,60.08]
[1747229106235,424.08,179.77,179.69,60.08]
[1747229106733,424.08,179.77,179.67,60.08]
[1747229107435,5.5628,179.74,179.67,60.08]
[1747229108043,429.642,179.77,179.67,60.08]
[1747229108337,424.08,179.77,179.67,60.08]
[1747229108740,5.5632,179.73,179.7,5.5639]
[1747229109742,5.5635,179.72,179.69,5.5642]
[1747229109936,9.72278134,179.75,179.65,3.668]
[1747229110139,9.72278134,179.75,179.65,63.748]
[1747229110336,9.72278134,179.75,179.65,3.668]
[1747229110337,69.80278134,179.75,179.65,3.668]
[1747229111039,60.08,179.75,179.65,3.668]
[1747229111239,424.08,179.77,179.65,3.668]
[1747229111435,5.5623,179.76,179.65,3.668]
[1747229111644,424.08,179.77,179.65,3.668]
[1747229111840,364.0,179.77,179.65,3.668]
[1747229112143,5.5622,179.76,179.73,5.5629]
[1747229112331,5.5622,179.76,179.7,60.08]
[1747229112538,5.5622,179.76,179.73,5.5628]
[1747229112839,69.78278134,179.78,179.7,60.08]
[1747229113031,69.78278134,179.78,179.71,5.5635]
[1747229113233,69.78278134,179.78,179.7,60.08]
[1747229113441,5.5629,179.74,179.7,60.08]
[1747229113640,5.5629,179.74,179.71,5.5634]
[1747229113837,9.72278134,179.75,179.65,3.668]
[1747229114142,9.72278134,179.75,179.67,60.08]
[1747229114539,9.72278134,179.76,179.67,60.08]
[1747229115143,5.5632,179.73,179.67,60.08]
[1747229115441,65.6232,179.73,179.67,60.08]
[1747229115645,60.06,179.73,179.67,60.08]
[1747229115846,369.5619,179.77,179.67,60.08]
[1747229116048,60.06,179.76,179.67,60.08]
[1747229117143,5.5626,179.75,179.72,5.5631]
[1747229117343,60.06,179.76,179.65,3.668]
[1747229117548,60.06,179.76,179.66,60.08]
[1747229117944,5.5628,179.74,179.66,60.08]
[1747229118144,16.6624,180.02,179.73,9.71076176]
[1747229118442,9.70802036,179.89,179.74,125.7107]
[1747229118744,60.04,179.88,179.74,125.7107]
[1747229119045,65.5985,179.88,179.82,5.56]
[1747229119241,75.62012232,179.87,179.74,5.5907]
[1747229119445,75.62012232,179.87,179.76,60.08]
[1747229119934,77.46582232,179.87,179.76,60.08]
[1747229120134,5.5597,179.84,179.81,5.5605]
[1747229120333,60.04,179.83,179.76,60.08]
[1747229120836,60.04,179.83,179.82,5.5602]
[1747229121144,65.5999,179.83,179.76,60.08]
[1747229121444,60.04,179.83,179.76,60.08]
[1747229121641,65.6002,179.83,179.79,5.5609]
[1747229121840,60.04,179.83,179.79,5.5609]
[1747229122145,65.6,179.83,179.8,5.5608]
[1747229122444,60.04,179.83,179.76,60.08]
[1747229124946,60.04,179.83,179.8,5.5606]
[1747229125146,60.04,179.83,179.76,60.08]
[1747229125548,65.6001,179.83,179.79,5.561]
[1747229126040,60.04,179.83,179.79,5.561]
[1747229126243,60.04,179.83,179.76,60.08]
[1747229126443,60.06,179.82,179.74,1.7964]
[1747229126645,60.06,179.82,179.72,60.06]
[1747229127339,60.06,179.82,179.69,1.8685]
[1747229127845,15.54012232,179.79,179.69,1.8685]
[1747229128043,61.9064,179.78,179.69,1.8685]
[1747229128247,61.9064,179.78,179.71,5.5634]
[1747229128446,60.06,179.77,179.69,1.8685]
[1747229128852,5.5632,179.73,179.7,5.5638]
[1747229129346,65.5632,179.73,179.69,7.4326]
[1747229129752,65.5632,179.73,179.69,1.8685]
[1747229129952,65.5632,179.73,179.7,5.5637]
[1747229130559,65.5632,179.73,179.69,5.5641]
[1747229131352,60.0,179.73,179.68,60.06]
[1747229131561,60.06,179.77,179.68,60.06]
[1747229131562,60.0,179.75,179.68,60.06]
[1747229131956,65.5624,179.75,179.72,5.5632]
[1747229132354,65.5624,179.75,179.68,60.06]
[1747229132562,5.5629,179.74,179.68,60.06]
[1747229133362,60.0,179.75,179.68,60.06]
[1747229133959,65.5626,179.75,179.68,60.06]
[1747229134762,5.5627,179.74,179.71,5.5634]
[1747229135062,60.0,179.75,179.68,60.06]
[1747229135257,60.0,179.75,179.69,5.564]
[1747229135863,5.5634,179.72,179.69,5.564]
[1747229136062,60.0,179.75,179.68,65.6245]
[1747229136451,5.5637,179.71,179.68,65.6245]
[1747229136657,60.0,179.7,179.68,5.5645]
[1747229136960,60.0,179.7,179.69,5.5643]
[1747229139664,60.0,179.7,179.68,5.5645]
[1747229140363,60.0,179.7,179.69,5.5643]
[1747229140864,60.0,179.7,179.68,5.5645]
[1747229141566,60.0,179.7,179.64,59.98]
[1747229141759,120.0,179.7,179.61,1.7626]
[1747229142159,9.72301409,179.69,179.61,1.7626]
[1747229142559,5.5652,179.66,179.63,5.566]
[1747229142758,9.72301409,179.69,179.61,1.7626]
[1747229143059,59.98,179.65,179.62,5.5664]
[1747229143259,59.98,179.65,179.6,60.0]
[1747229144165,65.5457,179.65,179.61,5.5666]
[1747229144465,65.5457,179.65,179.6,60.0]
[1747229144466,59.98,179.65,179.6,60.0]
[1747229144764,5.5661,179.64,179.6,65.5669]
[1747229144964,5.5661,179.64,179.6,60.0]
[1747229145365,65.5456,179.65,179.61,5.5665]
[1747229145568,59.98,179.65,179.6,60.0]
[1747229146070,59.98,179.65,179.64,5.5658]
[1747229146369,60.0,179.7,179.6,60.0]
[1747229146669,59.98,179.69,179.6,119.98]
[1747229146869,59.98,179.69,179.6,129.70301409]
[1747229147270,59.98,179.69,179.68,5.5646]
[1747229147869,59.98,179.69,179.67,5.5648]
[1747229148265,59.98,179.69,179.68,5.5646]
[1747229149270,5.5634,179.72,179.69,5.564]
[1747229149469,59.98,179.71,179.69,5.564]
[1747229149673,65.5436,179.71,179.66,1.923]
[1747229149970,65.5436,179.71,179.68,5.5645]
[1747229150171,59.98,179.71,179.66,1.923]
[1747229150375,5.5646,179.68,179.66,1.923]
[1747229150573,60.0,179.68,179.57,61.8523]
[1747229151674,1.8667,179.7,179.57,61.8523]
[1747229151871,59.96,179.67,179.57,61.8523]
[1747229153174,5.5653,179.66,179.63,5.5661]
[1747229153569,5.5653,179.66,179.57,61.8523]
[1747229153777,59.96,179.67,179.57,61.8523]
[1747229155275,5.5666,179.62,179.59,5.5671]
[1747229155475,65.5266,179.62,179.59,5.5671]
[1747229157272,59.96,179.62,179.6,5.567]
[1747229157476,59.96,179.62,179.57,61.8523]
[1747229158077,59.96,179.62,179.61,5.5667]
[1747229159076,59.96,179.62,179.6,5.5669]
[1747229159775,59.96,179.62,179.61,5.5667]
[1747229160377,59.96,179.62,179.6,5.5668]
[1747229160579,59.96,179.62,179.57,60.0]
[1747229160777,59.96,179.62,179.52,212.51419461]
[1747229160975,59.96,179.62,179.52,60.02]
[1747229161175,423.96,179.62,179.52,60.02]
[1747229161377,5.5682,179.57,179.52,60.02]
[1747229161674,59.96,179.56,179.52,60.02]
[1747229161875,364.0,179.62,179.52,60.02]
[1747229162179,59.96,179.62,179.61,5.5664]
[1747229162374,60.02,179.66,179.58,60.02]
[1747229162375,125.5454,179.66,179.58,60.02]
[1747229162680,119.98,179.66,179.59,1.9048]
[1747229162979,5.5658,179.64,179.59,1.9048]
[1747229163177,5.5658,179.64,179.61,5.5665]
[1747229163379,119.98,179.66,179.59,1.9048]
[1747229163783,119.98,179.66,179.62,5.5664]
[1747229164081,119.98,179.66,179.59,1.9048]
[1747229164281,119.98,179.66,179.6,5.5668]
[1747229164483,5.5663,179.63,179.6,5.5668]
[1747229165176,119.98,179.66,179.58,60.02]
[1747229165478,135.54421079,179.66,179.54,65.5087]
[1747229165681,365.7476,179.65,179.54,65.5087]
[1747229165880,365.7476,179.65,179.54,59.94]
[1747229166286,365.7476,179.65,179.54,65.5087]
[1747229166473,15.56421079,179.62,179.5,59.94]
[1747229166678,119.88,179.61,179.5,59.94]
[1747229166878,119.88,179.61,179.56,5.5683]
[1747229167082,119.88,179.61,179.5,59.94]
[1747229168084,5.5677,179.58,179.5,59.94]
[1747229168479,5.5677,179.58,179.56,5.5682]
[1747229168680,119.88,179.61,179.5,59.94]
[1747229169175,5.5677,179.59,179.55,5.5683]
[1747229169375,119.88,179.61,179.5,59.94]
[1747229170886,5.5677,179.58,179.5,59.94]
[1747229171087,119.88,179.61,179.5,59.94]
[1747229171788,59.94,179.61,179.5,59.94]
[1747229171984,364.0,179.64,179.51,59.94]
[1747229172189,59.94,179.63,179.51,59.94]
[1747229173390,5.5671,179.6,179.57,5.5678]
[1747229173689,59.94,179.63,179.55,59.96]
[1747229173891,59.94,179.63,179.59,5.5673]
[1747229174092,59.94,179.63,179.55,59.96]
[1747229174391,5.5665,179.62,179.59,5.5672]
[1747229174586,59.94,179.63,179.56,1.8528]
[1747229174786,59.94,179.63,179.56,5.4476]
[1747229175388,59.94,179.66,179.56,5.4476]
[1747229175686,365.8359,179.71,179.56,5.4476]
[1747229175687,59.94,179.67,179.57,59.94]
[1747229176190,59.94,179.69,179.57,59.94]
[1747229178494,5.5658,179.65,179.61,5.5664]
[1747229178688,5.5658,179.65,179.57,59.94]
[1747229179095,5.5658,179.65,179.61,5.5665]
[1747229179295,5.5658,179.65,179.57,59.94]
[1747229179695,5.5658,179.65,179.62,5.5661]
[1747229179892,5.5653,179.66,179.57,59.94]
[1747229180093,59.94,179.69,179.57,59.94]
[1747229180293,59.94,179.69,179.67,5.5647]
[1747229180995,381.36711079,179.76,179.63,59.94]
[1747229181195,59.94,179.75,179.64,5.4927]
[1747229181591,59.94,179.75,179.74,5.5627]
[1747229181798,59.92,179.77,179.7,59.94]
[1747229182198,5.5621,179.76,179.72,5.5631]
[1747229182398,5.5621,179.76,179.7,59.94]
[1747229182600,59.92,179.77,179.7,59.94]
[1747229182898,59.92,179.77,179.72,5.5631]
[1747229183801,59.92,179.77,179.7,59.94]
[1747229184298,5.5629,179.74,179.7,5.5639]
[1747229184499,59.92,179.77,179.7,5.5639]
[1747229184795,5.5643,179.69,179.65,5.5654]
[1747229185098,59.92,179.7,179.64,1.89]
[1747229185300,59.92,179.7,179.63,59.92]
[1747229185894,5.5646,179.68,179.63,59.92]
[1747229186099,5.5646,179.68,179.64,5.5655]
[1747229186302,59.92,179.7,179.64,5.5655]
[1747229186597,59.92,179.7,179.63,65.486]
[1747229186799,59.92,179.7,179.63,59.92]
[1747229187499,5.5646,179.68,179.64,5.5658]
[1747229187699,59.92,179.7,179.64,5.5658]
[1747229188000,5.5651,179.67,179.64,5.5658]
[1747229188293,5.5651,179.67,179.63,65.486]
[1747229189103,5.5651,179.67,179.64,5.5657]
[1747229189299,61.7129,179.72,179.63,59.92]
[1747229189503,59.92,179.72,179.63,59.92]
[1747229189702,59.92,179.71,179.64,1.791]
[1747229189902,65.4839,179.71,179.64,1.791]
[1747229190204,59.92,179.71,179.64,1.791]
[1747229190398,59.92,179.71,179.65,3.6469]
[1747229192207,59.92,179.71,179.7,5.5639]
[1747229192599,59.92,179.76,179.68,59.92]
[1747229192805,59.9,179.75,179.68,59.92]
[1747229193503,65.4625,179.75,179.71,5.5634]
[1747229193809,59.9,179.75,179.68,59.92]
[1747229194008,59.9,179.75,179.69,5.564]
[1747229194306,59.9,179.75,179.68,59.92]
[1747229194500,5.5633,179.73,179.69,5.5642]
[1747229194697,59.9,179.75,179.68,59.92]
[1747229195504,15.56421079,179.74,179.61,59.88]
[1747229195709,15.56421079,179.74,179.61,61.6577]
[1747229196009,5.565,179.67,179.64,5.5657]
[1747229196209,59.9,179.68,179.61,61.6577]
[1747229196810,5.5649,179.67,179.63,5.5659]
[1747229197011,59.9,179.68,179.61,61.6577]
[1747229197605,59.9,179.68,179.57,61.7769]
[1747229198100,59.9,179.68,179.59,5.5672]
[1747229198503,59.9,179.68,179.58,5.5676]
[1747229198709,59.9,179.68,179.57,61.7769]
[1747229198911,59.9,179.68,179.57,59.9]
[1747229199710,15.56421079,179.66,179.53,59.9]
[1747229200010,15.56421079,179.62,179.53,59.9]
[1747229200201,59.9,179.61,179.53,59.9]
[1747229200405,5.5676,179.59,179.55,5.5685]
[1747229200601,59.9,179.61,179.53,59.9]
[1747229200902,5.5676,179.59,179.53,65.4692]
[1747229201212,59.9,179.61,179.53,65.4692]
[1747229201409,59.9,179.61,179.53,65.469]
[1747229201916,5.5679,179.58,179.53,65.469]
[1747229202116,59.9,179.61,179.53,59.9]
[1747229203220,59.9,179.6,179.53,59.9]
[1747229203520,59.9,179.59,179.53,59.9]
[1747229204222,59.9,179.59,179.56,5.5681]
[1747229204421,59.9,179.59,179.53,59.9]
[1747229205017,59.9,179.59,179.56,5.5681]
[1747229205223,65.4674,179.59,179.56,5.5681]
[1747229205422,65.4674,179.59,179.53,59.9]
[1747229205628,65.4674,179.59,179.55,5.5683]
[1747229206016,59.9,179.59,179.53,59.9]
[1747229206521,5.5683,179.56,179.53,59.9]
[1747229206727,59.9,179.59,179.53,59.9]
[1747229207227,5.5683,179.57,179.53,59.9]
[1747229207722,59.9,179.59,179.53,59.9]
[1747229208326,59.9,179.59,179.56,5.5681]
[1747229208525,59.9,179.59,179.53,59.9]
[1747229208729,65.4676,179.59,179.55,5.5683]
[1747229209030,59.9,179.59,179.55,5.5683]
[1747229209325,65.4674,179.59,179.55,5.5683]
[1747229209529,59.92,179.58,179.53,59.9]
[1747229209828,59.92,179.58,179.51,1.7929]
[1747229210028,59.92,179.58,179.49,59.92]
[1747229210229,119.84,179.58,179.49,59.92]
[1747229210427,135.40421079,179.58,179.48,5.5707]
[1747229210625,1.7513,179.57,179.47,1.7401]
[1747229210930,5.5695,179.53,179.47,1.7401]
[1747229211131,59.92,179.52,179.47,1.7401]
[1747229211631,59.92,179.52,179.51,5.5698]
[1747229212236,59.92,179.54,179.47,1.7401]
[1747229212734,59.92,179.54,179.53,5.5692]
[1747229213634,59.92,179.54,179.47,1.7401]
[1747229214037,5.5697,179.52,179.47,5.5708]
[1747229214430,5.5697,179.52,179.45,61.6904]
[1747229214636,5.5697,179.52,179.48,5.5707]
[1747229214938,65.4893,179.53,179.45,61.6904]
[1747229215134,65.4893,179.53,179.49,5.5702]
[1747229215337,59.92,179.53,179.49,5.5702]
[1747229215839,5.5697,179.52,179.49,5.5702]
[1747229216840,59.92,179.53,179.45,61.6904]
[1747229217337,5.5703,179.5,179.47,5.5709]
[1747229217732,59.92,179.49,179.45,59.92]
[1747229217933,59.92,179.49,179.42,3.6569]
[1747229218340,5.5708,179.48,179.42,3.6569]
[1747229218535,5.5708,179.48,179.45,5.5714]
[1747229218734,59.92,179.49,179.42,3.6569]
[1747229219141,59.92,179.53,179.42,63.5769]
[1747229219437,423.94,179.57,179.43,11.1445]
[1747229219642,59.92,179.56,179.43,11.1445]
[1747229219839,5.5687,179.55,179.43,11.1445]
[1747229220040,59.92,179.56,179.43,11.1445]
[1747229220538,5.5687,179.55,179.43,11.1445]
[1747229220747,5.5687,179.55,179.53,5.5692]
[1747229220944,59.92,179.56,179.53,5.5692]
[1747229221147,65.4884,179.56,179.53,5.5692]
[1747229221443,65.4884,179.56,179.48,59.94]
[1747229221643,59.92,179.56,179.48,59.94]
[1747229222145,5.5687,179.55,179.48,59.94]
[1747229222343,59.92,179.56,179.48,59.94]
[1747229222546,59.92,179.56,179.5,5.5699]
[1747229222845,59.92,179.56,179.48,59.94]
[1747229223541,61.6913,179.61,179.49,5.4282]
[1747229223747,59.92,179.6,179.49,5.4282]
[1747229224351,59.92,179.62,179.49,5.4282]
[1747229225844,5.5682,179.57,179.53,5.569]
[1747229226150,59.92,179.57,179.5,59.9]
[1747229226350,5.569,179.54,179.5,59.9]
[1747229226550,59.92,179.57,179.5,59.9]
[1747229226949,5.5688,179.55,179.5,59.9]
[1747229227351,5.5688,179.55,179.52,5.5695]
[1747229227551,5.5684,179.56,179.5,59.9]
[1747229227754,59.92,179.57,179.5,59.9]
[1747229227951,59.92,179.57,179.53,5.569]
[1747229227952,5.5685,179.56,179.53,5.569]
[1747229228554,65.488,179.57,179.54,5.5688]
[1747229228852,59.92,179.57,179.5,59.9]
[1747229229251,5.5686,179.55,179.52,5.5693]
[1747229229451,59.92,179.57,179.5,59.9]
[1747229229755,5.5691,179.54,179.51,5.5696]
[1747229229943,59.92,179.57,179.5,59.9]
[1747229230352,59.9,179.6,179.5,59.9]
[1747229230653,119.8,179.6,179.5,121.5912]
[1747229230855,59.9,179.6,179.58,5.5674]
[1747229231753,59.9,179.6,179.5,121.5912]
[1747229233055,59.9,179.6,179.57,5.5677]
[1747229233355,59.9,179.6,179.5,121.5912]
[1747229233658,59.9,179.61,179.5,121.5912]
[1747229234158,59.9,179.61,179.59,5.5672]
[1747229234345,59.9,179.64,179.5,121.5912]
[1747229234745,65.466,179.64,179.5,121.5912]
[1747229234945,59.9,179.62,179.5,121.5912]
[1747229235349,59.9,179.62,179.61,5.5667]
[1747229235549,486.9051,179.67,179.5,121.5912]
[1747229235550,59.9,179.66,179.58,59.9]
[1747229235748,59.9,179.66,179.59,1.8435]
[1747229235946,65.4652,179.66,179.59,1.8435]
[1747229236456,59.9,179.66,179.59,1.8435]
[1747229236656,5.5663,179.63,179.58,59.9]
[1747229236855,59.9,179.66,179.55,1.9082]
[1747229237456,59.9,179.66,179.56,5.5681]
[1747229237656,59.9,179.66,179.55,1.9082]
[1747229237857,379.56421079,179.65,179.51,59.9]
[1747229238156,15.56421079,179.61,179.51,59.9]
[1747229238358,5.5689,179.55,179.51,59.9]
[1747229238554,59.88,179.55,179.51,59.9]
[1747229239358,59.88,179.55,179.52,5.5695]
[1747229239559,59.88,179.55,179.51,59.9]
[1747229240056,59.88,179.55,179.52,5.5695]
[1747229240257,59.88,179.55,179.51,59.9]
[1747229240759,5.5689,179.54,179.51,59.9]
[1747229241257,5.5689,179.54,179.48,1.9082]
[1747229241459,5.5689,179.54,179.51,5.5697]
[1747229241854,59.88,179.55,179.48,1.9082]
[1747229242965,59.88,179.55,179.54,5.5689]
[1747229243462,59.88,179.55,179.53,5.5691]
[1747229245564,59.88,179.56,179.54,5.5689]
[1747229245960,59.9,179.6,179.54,5.5689]
[1747229246163,59.88,179.57,179.48,1.9082]
[1747229247861,59.9,179.6,179.48,1.9082]
[1747229248063,59.88,179.59,179.48,1.9082]
[1747229248465,5.5678,179.58,179.55,5.5684]
[1747229249770,59.9,179.6,179.48,1.9082]
[1747229249967,59.88,179.59,179.48,1.9082]
[1747229250269,119.78,179.6,179.48,1.9082]
[1747229250868,5.5683,179.56,179.53,5.569]
[1747229251370,5.568,179.57,179.48,1.9082]
[1747229251565,119.78,179.6,179.48,1.9082]
[1747229252359,5.5691,179.54,179.51,5.5696]
[1747229252558,119.78,179.6,179.48,1.9082]
[1747229252971,135.34421079,179.6,179.51,5.5697]
[1747229253269,135.34421079,179.6,179.48,1.9082]
[1747229253470,135.34421079,179.6,179.4,481.26]
[1747229253670,15.56421079,179.56,179.42,59.9]
[1747229253872,485.529,179.55,179.42,59.9]
[1747229254665,5.5711,179.48,179.44,5.5718]
[1747229254873,59.86,179.48,179.42,59.9]
[1747229256165,59.86,179.48,179.38,63.4209]
[1747229256868,5.5716,179.46,179.38,63.4209]
[1747229257065,59.86,179.48,179.38,61.6598]
[1747229257468,5.5711,179.47,179.44,5.5718]
[1747229257770,59.86,179.48,179.38,61.6598]
[1747229258170,59.86,179.48,179.45,5.5714]
[1747229258468,59.86,179.48,179.38,61.6598]
[1747229259071,59.86,179.48,179.43,5.5722]
[1747229259472,59.86,179.48,179.38,61.6598]
[1747229259668,59.86,179.48,179.44,5.5718]
[1747229260168,59.86,179.48,179.43,5.5722]
[1747229260373,59.86,179.48,179.38,59.86]
[1747229260970,5.5717,179.45,179.38,59.86]
[1747229261474,5.5722,179.44,179.38,59.86]
[1747229261971,59.86,179.48,179.38,59.86]
[1747229262871,65.431,179.48,179.44,5.5718]
[1747229263074,65.431,179.48,179.38,59.86]
[1747229263273,59.86,179.48,179.38,59.86]
[1747229263475,423.88,179.51,179.38,59.86]
[1747229263675,59.88,179.5,179.38,59.86]
[1747229263972,65.4502,179.5,179.46,5.5711]
[1747229264176,65.4502,179.5,179.39,59.88]
[1747229264476,59.88,179.5,179.39,59.88]
[1747229264673,59.88,179.5,179.47,5.571]
[1747229265174,59.88,179.5,179.48,5.5707]
[1747229265376,59.88,179.5,179.39,59.88]
[1747229265975,65.4502,179.5,179.39,59.88]
[1747229266376,59.88,179.5,179.39,59.88]
[1747229266580,423.88,179.51,179.49,5.5705]
[1747229266775,59.86,179.5,179.39,59.88]
[1747229266971,59.86,179.5,179.48,5.5707]
[1747229267171,59.86,179.5,179.43,59.88]
[1747229267381,364.0,179.57,179.43,59.88]
[1747229267674,59.86,179.56,179.53,5.569]
[1747229267875,59.86,179.56,179.44,65.3607]
[1747229268178,59.86,179.56,179.51,5.5696]
[1747229268577,5.5687,179.55,179.52,5.5695]
[1747229269176,65.4284,179.56,179.52,5.5695]
[1747229269378,65.4284,179.56,179.44,65.3607]
[1747229269577,59.86,179.56,179.44,65.3607]
[1747229270178,364.0,179.57,179.44,65.3607]
[1747229270373,59.86,179.56,179.51,5.5698]
[1747229270574,59.86,179.56,179.48,59.88]
[1747229271479,5.5692,179.54,179.51,5.5698]
[1747229271676,59.86,179.56,179.48,59.88]
[1747229272075,5.5687,179.55,179.48,59.88]
[1747229272281,59.86,179.56,179.48,59.88]
[1747229272676,5.5686,179.55,179.48,59.88]
[1747229273180,5.5686,179.55,179.51,5.5696]
[1747229273375,59.86,179.56,179.44,65.3807]
[1747229273584,69.6214242,179.54,179.44,65.3807]
[1747229273779,5.57,179.51,179.47,5.5709]